[Event "Championnat d'Europe de Blitz"]
[Date "2024.12.09"]
[White "Kadric, Denis"]
[Black "Diermair, Andreas"]
[WhiteElo "2544"]
[BlackElo "2433"]
[Round "9.31"]
[Result "1/2-1/2"]
[TimeControl "180+2"]

1. e4 {[%emt 00:13:36] [%clk 00:03:04]} e6 {[%emt 00:00:02] [%clk 00:03:02]} 2.
d3 {[%emt 00:00:02] [%clk 00:03:04]} d5 {[%emt 00:00:02] [%clk 00:03:01]} 3. Nd2
{[%clk 00:03:06]} c5 {[%emt 00:00:04] [%clk 00:02:59]} 4. g3 {[%clk 00:03:07]}
Nc6 {[%emt 00:00:01] [%clk 00:03:00]} 5. Bg2 {[%clk 00:03:08]} Nf6 {[%emt
00:00:02] [%clk 00:02:59]} 6. f4 {[%emt 00:00:01] [%clk 00:03:09]} Be7 {[%emt
00:00:06] [%clk 00:02:55]} 7. e5 {[%clk 00:03:10]} Nd7 {[%emt 00:00:02] [%clk
00:02:55]} 8. Ndf3 {[%clk 00:03:11]} b5 {[%emt 00:00:14] [%clk 00:02:42]} 9. Nh3
{[%emt 00:00:01] [%clk 00:03:12]} Bb7 {[%emt 00:00:04] [%clk 00:02:41]} 10. O-O
{[%emt 00:00:01] [%clk 00:03:12]} Qc7 {[%emt 00:00:11] [%clk 00:02:33]} 11. Bd2
{[%emt 00:00:05] [%clk 00:03:09]} a5 {[%emt 00:00:03] [%clk 00:02:32]} 12. Qe2
{[%clk 00:03:10]} b4 {[%emt 00:00:04] [%clk 00:02:30]} 13. Rae1 {[%emt 00:00:13]
[%clk 00:02:59]} g6 {[%emt 00:00:11] [%clk 00:02:22]} 14. Nf2 {[%clk 00:03:00]}
Nd4 {[%emt 00:00:05] [%clk 00:02:19]} 15. Qd1 {[%emt 00:00:13] [%clk 00:02:49]}
h5 {[%emt 00:00:03] [%clk 00:02:18]} 16. h3 {[%emt 00:00:06] [%clk 00:02:45]} a4
{[%emt 00:00:07] [%clk 00:02:12]} 17. g4 {[%emt 00:00:13] [%clk 00:02:34]} hxg4
{[%emt 00:00:03] [%clk 00:02:12]} 18. hxg4 {[%clk 00:02:36]} Qb6 {[%emt
00:00:57] [%clk 00:01:17]} 19. c3 {[%emt 00:00:51] [%clk 00:01:47]} Nxf3+ {[%emt
00:00:11] [%clk 00:01:08]} 20. Qxf3 {[%clk 00:01:48]} a3 {[%emt 00:00:03] [%clk
00:01:06]} 21. b3 {[%emt 00:00:07] [%clk 00:01:43]} bxc3 {[%emt 00:00:03] [%clk
00:01:06]} 22. Bxc3 {[%clk 00:01:44]} Rb8 {[%emt 00:00:19] [%clk 00:00:49]} 23.
Bd2 {[%emt 00:00:01] [%clk 00:01:45]} Qc7 {[%emt 00:00:21] [%clk 00:00:30]} 24.
Rc1 {[%emt 00:00:43] [%clk 00:01:04]} Qb6 {[%emt 00:00:05] [%clk 00:00:28]} 25.
Rfe1 {[%emt 00:00:04] [%clk 00:01:01]} Bh4 {[%emt 00:00:07] [%clk 00:00:23]} 26.
Re2 {[%emt 00:00:04] [%clk 00:01:00]} Ke7 {[%emt 00:00:10] [%clk 00:00:15]} 27.
Be1 {[%emt 00:00:35] [%clk 00:00:27]} Bxf2+ {[%emt 00:00:04] [%clk 00:00:12]}
28. Bxf2 {[%emt 00:00:10] [%clk 00:00:19]} d4 {[%clk 00:00:13]} 29. Qg3 {[%clk
00:00:20]} Bxg2 {[%clk 00:00:14]} 30. Qxg2 {[%clk 00:00:21]} Qb7 {[%emt
00:00:03] [%clk 00:00:13]} 31. Rec2 {[%emt 00:00:10] [%clk 00:00:14]} Rh7 {[%emt
00:00:04] [%clk 00:00:12]} 32. Qxb7 {[%emt 00:00:02] [%clk 00:00:13]} Rxb7
{[%clk 00:00:13]} 33. Kg2 {[%clk 00:00:15]} Rb8 {[%clk 00:00:14]} 34. Rh1 {[%emt
00:00:01] [%clk 00:00:15]} Rbh8 {[%clk 00:00:15]} 35. Rxh7 {[%clk 00:00:16]}
Rxh7 {[%clk 00:00:16]} 36. g5 {[%emt 00:00:12] [%clk 00:00:06]} Rh8 {[%emt
00:00:10] [%clk 00:00:09]} 37. Rc4 {[%emt 00:00:01] [%clk 00:00:07]} Ra8 {[%clk
00:00:10]} 38. Be1 {[%clk 00:00:09]} Kd8 {[%emt 00:00:03] [%clk 00:00:08]} 39.
b4 {[%emt 00:00:02] [%clk 00:00:10]} cxb4 {[%emt 00:00:01] [%clk 00:00:09]} 40.
Bxb4 {[%clk 00:00:11]} Nb6 {[%emt 00:00:02] [%clk 00:00:08]} 41. Rxd4+ {[%emt
00:00:02] [%clk 00:00:10]} Nd5 {[%clk 00:00:10]} 42. Kf3 {[%clk 00:00:12]} Kc7
{[%emt 00:00:02] [%clk 00:00:10]} 43. Ke4 {[%emt 00:00:02] [%clk 00:00:12]} Kc6
{[%emt 00:00:02] [%clk 00:00:10]} 44. Bd6 {[%emt 00:00:01] [%clk 00:00:12]} Ra7
{[%emt 00:00:03] [%clk 00:00:09]} 45. Rc4+ {[%emt 00:00:02] [%clk 00:00:13]} Kd7
{[%clk 00:00:10]} 46. Kf3 {[%emt 00:00:10] [%clk 00:00:06]} Nb6 {[%clk
00:00:11]} 47. Rc3 {[%emt 00:00:02] [%clk 00:00:05]} Nd5 {[%emt 00:00:03] [%clk
00:00:10]} 48. Rxa3 {[%emt 00:00:01] [%clk 00:00:06]} Rxa3 {[%clk 00:00:11]} 49.
Bxa3 {[%emt 00:00:02]} Nc3 {[%clk 00:00:13]} 50. Bb4 {[%emt 00:00:01] [%clk
00:00:08]} Nxa2 {[%emt 00:00:02] [%clk 00:00:14]} 51. Bd2 {[%clk 00:00:09]} Kc6
{[%clk 00:00:15]} 52. Ke4 {[%clk 00:00:11]} Kc5 {[%emt 00:00:01] [%clk
00:00:15]} 53. Ke3 {[%emt 00:00:09] [%clk 00:00:04]} Kd5 {[%clk 00:00:17]} 54.
Ke2 {[%emt 00:00:03] [%clk 00:00:04]} Kd4 {[%emt 00:00:02] [%clk 00:00:16]} 55.
Be3+ {[%emt 00:00:03] [%clk 00:00:03]} Kd5 {[%clk 00:00:18]} 56. Bd2 {[%clk
00:00:04]} Kd4 {[%clk 00:00:19]} 57. Be3+ {[%clk 00:00:06]} Kd5 {[%clk
00:00:21]} 58. Kd2 {[%clk 00:00:07]} Nb4 {[%emt 00:00:03] [%clk 00:00:20]} 59.
Kc3 Nc6 {[%clk 00:00:22]} 60. Bc1 {[%emt 00:00:01] [%clk 00:00:09]} Nd4 {[%emt
00:00:03] [%clk 00:00:21]} 61. Be3 {[%clk 00:00:10]} Nc6 {[%clk 00:00:23]} 62.
Kb3 {[%emt 00:00:05] [%clk 00:00:08]} Ne7 {[%emt 00:00:04] [%clk 00:00:20]} 63.
Kb4 {[%emt 00:00:02] [%clk 00:00:08]} Kc6 {[%emt 00:00:03] [%clk 00:00:20]} 64.
Kc4 {[%emt 00:00:02] [%clk 00:00:09]} Nd5 {[%emt 00:00:01] [%clk 00:00:20]} 65.
Bd2 {[%clk 00:00:11]} Nc7 {[%emt 00:00:01] [%clk 00:00:21]} 66. Kb4 {[%emt
00:00:07] [%clk 00:00:06]} Kd5 {[%emt 00:00:05] [%clk 00:00:17]} 67. Be3 {[%emt
00:00:03] [%clk 00:00:05]} Kc6 {[%clk 00:00:19]} 68. Ka5 {[%emt 00:00:02] [%clk
00:00:05]} Kb7 {[%emt 00:00:03] [%clk 00:00:17]} 69. Bd2 {[%emt 00:00:03] [%clk
00:00:05]} Kc6 {[%emt 00:00:01] [%clk 00:00:18]} 70. Bc1 {[%emt 00:00:02] [%clk
00:00:05]} Kb7 {[%emt 00:00:02] [%clk 00:00:18]} 71. Bd2 {[%emt 00:00:02] [%clk
00:00:05]} Kc6 {[%clk 00:00:19]} 72. Kb4 {[%clk 00:00:06]} Kd5 {[%emt 00:00:02]
[%clk 00:00:19]} 73. Be3 {[%clk 00:00:08]} Kc6 {[%emt 00:00:02] [%clk 00:00:20]}
74. Kc4 {[%clk 00:00:09]} Nd5 {[%emt 00:00:02] [%clk 00:00:20]} 75. Bc1 {[%emt
00:00:01] [%clk 00:00:10]} Nc7 {[%emt 00:00:03] [%clk 00:00:19]} 76. Kd4 {[%emt
00:00:02] [%clk 00:00:10]} Nb5+ {[%emt 00:00:02] [%clk 00:00:19]} 77. Kc4 {[%emt
00:00:02] [%clk 00:00:10]} Nc7 {[%clk 00:00:21]} 78. Kd4 {[%emt 00:00:05] [%clk
00:00:00]} 1/2-1/2

[Site "Europe Echecs"]

[Event "Championnat d'Europe de Blitz"]
[Date "2024.12.09"]
[White "Reprintsev, Alexander"]
[Black "Kazakouski, Valery"]
[WhiteElo "2230"]
[BlackElo "2567"]
[Round "9.32"]
[Result "0-1"]
[TimeControl "180+2"]

1. e4 {[%clk 00:03:03]} c5 {[%emt 00:00:01] [%clk 00:03:04]} 2. b3 {[%emt
00:00:01] [%clk 00:03:04]} Nc6 {[%emt 00:00:02] [%clk 00:03:04]} 3. Bb2 {[%clk
00:03:05]} e5 {[%emt 00:00:02] [%clk 00:03:04]} 4. f4 {[%emt 00:00:02] [%clk
00:03:05]} exf4 {[%emt 00:00:03] [%clk 00:03:02]} 5. Qf3 {[%emt 00:00:01] [%clk
00:03:06]} Nf6 {[%emt 00:00:07] [%clk 00:02:58]} 6. Qxf4 {[%emt 00:00:14] [%clk
00:02:54]} d5 {[%emt 00:00:12] [%clk 00:02:48]} 7. Bxf6 {[%emt 00:00:06] [%clk
00:02:49]} Qxf6 {[%emt 00:00:27] [%clk 00:02:24]} 8. Qxf6 {[%emt 00:00:01] [%clk
00:02:49]} gxf6 {[%emt 00:00:01] [%clk 00:02:25]} 9. exd5 {[%emt 00:00:04] [%clk
00:02:48]} Nb4 {[%clk 00:02:26]} 10. Na3 {[%emt 00:00:03] [%clk 00:02:46]} Nxd5
{[%emt 00:00:05] [%clk 00:02:23]} 11. Bb5+ {[%emt 00:00:04] [%clk 00:02:44]} Kd8
{[%emt 00:00:02] [%clk 00:02:23]} 12. O-O-O {[%emt 00:00:05]} Be6 {[%clk
00:02:23]} 13. Ne2 {[%emt 00:00:11] [%clk 00:02:34]} a6 {[%emt 00:00:06] [%clk
00:02:20]} 14. Bc4 {[%emt 00:00:19] [%clk 00:02:17]} b5 {[%emt 00:00:01] [%clk
00:02:21]} 15. Bxd5 {[%emt 00:00:02] [%clk 00:02:16]} Bxd5 {[%emt 00:00:01]
[%clk 00:02:22]} 16. Nf4 {[%emt 00:00:04] [%clk 00:02:14]} Bc6 {[%emt 00:00:08]
[%clk 00:02:16]} 17. c4 {[%emt 00:00:06] [%clk 00:02:10]} Bd6 {[%emt 00:00:04]
[%clk 00:02:13]} 18. Rhf1 {[%emt 00:00:02] [%clk 00:02:11]} Kc7 {[%emt 00:00:09]
[%clk 00:02:05]} 19. g3 {[%emt 00:00:02] [%clk 00:02:11]} h5 {[%emt 00:00:04]
[%clk 00:02:04]} 20. Nc2 {[%emt 00:00:28] [%clk 00:01:45]} bxc4 {[%emt 00:00:29]
[%clk 00:01:38]} 21. bxc4 {[%emt 00:00:01] [%clk 00:01:46]} Rab8 {[%emt
00:00:13] [%clk 00:01:26]} 22. Ne3 {[%emt 00:00:03] [%clk 00:01:45]} Be5 {[%emt
00:00:01] [%clk 00:01:27]} 23. Nfd5+ {[%emt 00:00:06] [%clk 00:01:42]} Kd6
{[%emt 00:00:07] [%clk 00:01:21]} 24. Nf5+ {[%emt 00:00:10] [%clk 00:01:34]} Kd7
{[%emt 00:00:01] [%clk 00:01:22]} 25. d4 {[%emt 00:00:05] [%clk 00:01:32]} cxd4
{[%emt 00:00:03] [%clk 00:01:22]} 26. Nxd4 {[%clk 00:01:33]} Ba4 {[%emt
00:01:01] [%clk 00:00:23]} 27. Nc2 {[%emt 00:00:10] [%clk 00:01:24]} Kc6 {[%emt
00:00:10] [%clk 00:00:15]} 28. Ndb4+ {[%emt 00:00:11] [%clk 00:01:15]} Kb7
{[%emt 00:00:01] [%clk 00:00:15]} 29. Rd5 {[%emt 00:00:06] [%clk 00:01:12]} Rhc8
{[%emt 00:00:01] [%clk 00:00:16]} 30. Ne3 {[%emt 00:00:19] [%clk 00:00:54]} Ka7
{[%emt 00:00:13] [%clk 00:00:06]} 31. a3 {[%clk 00:00:55]} Rb7 {[%emt 00:00:03]
[%clk 00:00:05]} 32. Kd2 {[%emt 00:00:06] [%clk 00:00:50]} Bc6 {[%emt 00:00:02]
[%clk 00:00:06]} 33. Ra5 {[%emt 00:00:09] [%clk 00:00:44]} Rd7+ {[%clk
00:00:07]} 34. Ke2 {[%emt 00:00:02] [%clk 00:00:43]} Bb7 {[%clk 00:00:09]} 35.
Nbd5 {[%emt 00:00:03] [%clk 00:00:42]} h4 {[%emt 00:00:02] [%clk 00:00:09]} 36.
gxh4 {[%emt 00:00:02] [%clk 00:00:41]} Rh8 {[%emt 00:00:01] [%clk 00:00:10]} 37.
Nxf6 {[%emt 00:00:04] [%clk 00:00:40]} Bxf6 {[%emt 00:00:01] [%clk 00:00:11]}
38. Rxf6 {[%clk 00:00:41]} Rxh4 {[%clk 00:00:13]} 39. c5 {[%emt 00:00:20] [%clk
00:00:23]} Rxh2+ {[%clk 00:00:14]} 40. Ke1 {[%emt 00:01:12] [%clk 00:00:24]} Re7
{[%emt 00:00:07] [%clk 00:01:06]} 41. c6 {[%emt 00:00:10] [%clk 00:00:16]} Rxe3+
{[%emt 00:00:02] [%clk 00:01:06]} 42. Kf1 {[%emt 00:00:02] [%clk 00:00:16]} Bc8
{[%emt 00:00:08] [%clk 00:01:00]} 43. Rxf7+ {[%emt 00:00:01] [%clk 00:00:16]}
Kb6 {[%clk 00:01:02]} 44. Rg5 {[%emt 00:00:08] [%clk 00:00:10]} Rxa3 {[%emt
00:00:09] [%clk 00:00:55]} 45. Kg1 {[%emt 00:00:05] [%clk 00:00:06]} Rc2 {[%emt
00:00:02] [%clk 00:00:55]} 46. Rf6 {[%emt 00:00:05] [%clk 00:00:04]} Ra1+ {[%emt
00:00:01] [%clk 00:00:56]} 47. Rf1 {[%clk 00:00:05]} Rxf1+ {[%emt 00:00:03]
[%clk 00:00:55]} 48. Kxf1 {[%clk 00:00:06]} Rxc6 {[%emt 00:00:01] [%clk
00:00:56]} 49. Ke1 {[%emt 00:00:01] [%clk 00:00:07]} Rd6 {[%emt 00:00:02] [%clk
00:00:56]} 50. Rg2 {[%emt 00:00:02] [%clk 00:00:07]} a5 {[%emt 00:00:01] [%clk
00:00:57]} 51. Rd2 {[%clk 00:00:08]} Rh6 {[%emt 00:00:08] [%clk 00:00:51]} 52.
Kd1 {[%emt 00:00:01] [%clk 00:00:09]} Ba6 {[%emt 00:00:08] [%clk 00:00:46]} 53.
Kc2 {[%emt 00:00:01] [%clk 00:00:10]} a4 {[%emt 00:00:05] [%clk 00:00:43]} 54.
Kc3 {[%emt 00:00:01] [%clk 00:00:11]} Kc5 {[%emt 00:00:02] [%clk 00:00:43]} 55.
Rf2 {[%emt 00:00:04] [%clk 00:00:09]} Rh3+ {[%emt 00:00:02] [%clk 00:00:44]} 56.
Kb2 {[%clk 00:00:10]} a3+ {[%clk 00:00:45]} 57. Kc2 {[%emt 00:00:02] [%clk
00:00:11]} Bc4 {[%emt 00:00:01] [%clk 00:00:46]} 58. Rf8 {[%emt 00:00:07] [%clk
00:00:05]} Kb4 {[%emt 00:00:02] [%clk 00:00:45]} 59. Rb8+ {[%emt 00:00:01] [%clk
00:00:06]} Bb5 {[%clk 00:00:46]} 60. Ra8 {[%emt 00:00:02] [%clk 00:00:07]} Rh2+
{[%emt 00:00:02] [%clk 00:00:46]} 61. Kb1 {[%emt 00:00:03] [%clk 00:00:05]} Kb3
{[%emt 00:00:07] [%clk 00:00:41]} 0-1

[Site "Europe Echecs"]

[Event "Championnat d'Europe de Blitz"]
[Date "2024.12.09"]
[White "Van Foreest, Lucas"]
[Black "Andonovski, Ljubisa"]
[WhiteElo "2520"]
[BlackElo "2253"]
[Round "9.33"]
[Result "1-0"]
[TimeControl "180+2"]

1. Nf3 {[%emt 00:00:01] [%clk 00:03:03]} d5 {[%emt 00:00:02] [%clk 00:03:02]} 2.
g3 {[%emt 00:00:01] [%clk 00:03:04]} Nf6 {[%emt 00:00:07] [%clk 00:02:56]} 3.
Bg2 {[%emt 00:00:01] [%clk 00:03:05]} Bg4 {[%emt 00:00:04] [%clk 00:02:54]} 4.
h3 {[%emt 00:00:02] [%clk 00:03:06]} Bh5 {[%emt 00:00:05] [%clk 00:02:50]} 5. d4
{[%clk 00:03:07]} e6 {[%emt 00:00:06] [%clk 00:02:47]} 6. O-O {[%emt 00:00:02]
[%clk 00:03:08]} Nbd7 {[%emt 00:00:13] [%clk 00:02:36]} 7. b3 {[%emt 00:00:17]
[%clk 00:02:53]} a5 {[%emt 00:00:02] [%clk 00:02:36]} 8. c4 {[%emt 00:00:01]
[%clk 00:02:54]} c6 {[%emt 00:00:03] [%clk 00:02:35]} 9. Nc3 {[%emt 00:00:03]
[%clk 00:02:52]} Be7 {[%emt 00:00:13] [%clk 00:02:25]} 10. Bb2 {[%emt 00:00:07]
[%clk 00:02:48]} O-O {[%emt 00:00:01] [%clk 00:02:24]} 11. g4 {[%emt 00:00:02]
[%clk 00:02:49]} Bg6 {[%emt 00:00:01] [%clk 00:02:25]} 12. Nh4 {[%emt 00:00:02]
[%clk 00:02:49]} dxc4 {[%emt 00:00:51] [%clk 00:01:36]} 13. bxc4 {[%emt
00:00:03] [%clk 00:02:49]} e5 {[%emt 00:00:14] [%clk 00:01:24]} 14. e3 {[%emt
00:00:01] [%clk 00:02:50]} exd4 {[%emt 00:00:08] [%clk 00:01:18]} 15. exd4
{[%clk 00:02:51]} Nb6 {[%emt 00:00:14] [%clk 00:01:06]} 16. Nxg6 {[%emt
00:00:01] [%clk 00:02:52]} hxg6 {[%clk 00:01:06]} 17. Qd3 {[%clk 00:02:53]} a4
{[%emt 00:00:18] [%clk 00:00:52]} 18. Rad1 {[%emt 00:00:02] [%clk 00:02:53]} a3
{[%emt 00:00:05] [%clk 00:00:49]} 19. Bc1 {[%clk 00:02:54]} Na4 {[%emt 00:00:22]
[%clk 00:00:28]} 20. Nxa4 {[%emt 00:00:02] [%clk 00:02:54]} Rxa4 {[%clk
00:00:29]} 21. Rfe1 {[%emt 00:00:03] [%clk 00:02:53]} Bb4 {[%emt 00:00:02] [%clk
00:00:29]} 22. Qb3 {[%emt 00:00:09] [%clk 00:02:45]} Qa8 {[%emt 00:00:11] [%clk
00:00:21]} 23. Re3 {[%emt 00:00:02] [%clk 00:02:45]} Bd6 {[%emt 00:00:07] [%clk
00:00:17]} 24. Re2 {[%emt 00:00:10] [%clk 00:02:36]} Ra5 {[%emt 00:00:07] [%clk
00:00:12]} 25. c5 {[%emt 00:00:01] [%clk 00:02:36]} Bc7 {[%emt 00:00:03] [%clk
00:00:11]} 26. Rd3 {[%emt 00:00:09] [%clk 00:02:29]} Rd8 {[%emt 00:00:02] [%clk
00:00:12]} 27. Bxa3 {[%emt 00:00:09] [%clk 00:02:22]} Rb5 {[%emt 00:00:01] [%clk
00:00:13]} 28. Bb4 {[%emt 00:00:05] [%clk 00:02:19]} Nd5 {[%emt 00:00:01] [%clk
00:00:13]} 29. a3 {[%emt 00:00:18] [%clk 00:02:03]} Ba5 {[%emt 00:00:07] [%clk
00:00:09]} 30. Bxd5 {[%emt 00:00:05] [%clk 00:02:00]} cxd5 {[%emt 00:00:03]
[%clk 00:00:08]} 31. Re5 {[%emt 00:00:23] [%clk 00:01:39]} Bxb4 {[%emt 00:00:02]
[%clk 00:00:08]} 32. axb4 {[%emt 00:00:01] [%clk 00:01:40]} Qa1+ {[%emt
00:00:02] [%clk 00:00:08]} 33. Rd1 {[%clk 00:01:41]} Qa6 {[%emt 00:00:03] [%clk
00:00:07]} 34. Rxd5 {[%emt 00:00:15] [%clk 00:01:28]} Rxd5 {[%emt 00:00:02]
[%clk 00:00:07]} 35. Qxd5 {[%emt 00:00:04] [%clk 00:01:26]} Rxb4 {[%emt
00:00:01] [%clk 00:00:08]} 36. Re1 {[%emt 00:00:12] [%clk 00:01:16]} Qc4 {[%emt
00:00:03] [%clk 00:00:07]} 37. Qd8+ {[%emt 00:00:05] [%clk 00:01:13]} Kh7 {[%clk
00:00:08]} 38. Qh4+ {[%emt 00:00:01] [%clk 00:01:14]} 1-0

[Site "Europe Echecs"]

[Event "Championnat d'Europe de Blitz"]
[Date "2024.12.09"]
[White "Vyval, Volodymyr"]
[Black "Fridman, Daniel"]
[WhiteElo "2269"]
[BlackElo "2571"]
[Round "9.34"]
[Result "0-1"]
[TimeControl "180+2"]

1. e4 {[%clk 00:03:03]} c6 {[%emt 00:00:02] [%clk 00:03:03]} 2. d4 {[%emt
00:00:01] [%clk 00:03:04]} d5 {[%clk 00:03:04]} 3. e5 {[%clk 00:03:05]} c5
{[%clk 00:03:05]} 4. dxc5 {[%emt 00:00:02] [%clk 00:03:06]} Nc6 {[%emt 00:00:01]
[%clk 00:03:06]} 5. f4 {[%emt 00:00:08] [%clk 00:02:59]} e6 {[%emt 00:00:02]
[%clk 00:03:07]} 6. Nf3 {[%emt 00:00:14] [%clk 00:02:46]} Bxc5 {[%emt 00:00:02]
[%clk 00:03:08]} 7. c3 {[%emt 00:00:02] [%clk 00:02:46]} Nh6 {[%emt 00:00:02]
[%clk 00:03:08]} 8. b4 {[%emt 00:00:31] [%clk 00:02:18]} Bb6 {[%emt 00:00:01]
[%clk 00:03:09]} 9. b5 {[%emt 00:00:09] [%clk 00:02:11]} Ne7 {[%emt 00:00:08]
[%clk 00:03:03]} 10. Nd4 {[%emt 00:00:08] [%clk 00:02:05]} Qc7 {[%emt 00:00:05]
[%clk 00:03:00]} 11. Ba3 {[%emt 00:00:06] [%clk 00:02:01]} Nef5 {[%emt 00:00:05]
[%clk 00:02:56]} 12. g4 {[%emt 00:00:23] [%clk 00:01:41]} Ne3 {[%emt 00:00:07]
[%clk 00:02:51]} 13. Qe2 {[%emt 00:00:18] [%clk 00:01:24]} Bxd4 {[%emt 00:00:03]
[%clk 00:02:50]} 14. cxd4 {[%emt 00:00:07] [%clk 00:01:19]} Nc2+ {[%emt
00:00:02] [%clk 00:02:51]} 0-1

[Site "Europe Echecs"]